fUST/lending_fUST_20250804
["ID","MTS","AMOUNT","RATE_DAILY","PERIOD"]
[377193218,1754279619895,12646.87439643,0.0003,7]
[377193219,1754279688097,899.81,0.00025,90]
[377193220,1754279707698,898.0,0.0003,30]
[377193222,1754279905825,301.15818807,0.0003,2]
[377193225,1754280070649,-159.69706798,0.00030137,2]
[377193226,1754280075701,-205.72813309,0.00030137,2]
[377193227,1754280093402,-634.57479893,0.00030137,2]
[377193228,1754280158969,42.42520107,0.0003,120]
[377193229,1754280158997,469.57479893,0.0003,120]
[377193230,1754280161240,-500.0,0.00033,4]
[377193231,1754280161260,-500.0,0.000335,4]
[377193232,1754280161280,-500.0,0.00034,4]
[377193233,1754280161302,-300.0,0.00036,120]
[377193234,1754280161322,-54.0,0.00037,4]
[377193235,1754280229348,-500.0,0.00035,4]
[377193236,1754280229369,-420.0,0.00037,4]
[377193237,1754280230082,161.0,0.00027,7]
[377193239,1754280444268,159.29,0.0002718,7]
[377193243,1754280569790,518.2404975,0.00029919,35]
[377193278,1754280631741,-300.0,0.00038,120]
[377193280,1754280631751,-300.0,0.0004,120]
[377193282,1754280631761,-666.0,0.00040265,2]
[377193284,1754280631770,-191.63154166,0.0004137,28]
[377193371,1754280637676,-237.1268386,0.00040149,2]
[377193372,1754280637686,-19.88329675,0.0004137,28]
[377193373,1754280637696,-1063.99605265,0.0004147,2]
[377193374,1754280637708,-4630.00643768,0.0004147,2]
[377193375,1754280637719,-963.85330514,0.0004147,2]
[377193376,1754280637731,-1003.90200101,0.0004147,2]
[377193377,1754280637740,-155.225388,0.00041632,31]
[377193378,1754280637750,-122.75099299,0.00041632,61]
[377193379,1754280637762,-41.95600701,0.00041632,61]
[377193380,1754280637772,-220.56168722,0.000419,45]
[377193381,1754280637781,-300.0,0.00042,120]
[377193382,1754280637791,-220.56168722,0.00042314,46]
[377193383,1754280637800,-220.56168722,0.00042728,47]
[377193384,1754280637810,-160.0,0.00043,40]
[377193385,1754280637820,-205.99269249,0.00043,50]
[377193386,1754280637830,-211.51483836,0.00043073,28]
[377193387,1754280637839,-220.56168722,0.00043141,48]
[377193388,1754280637849,-220.56168722,0.00043555,48]
[377193389,1754280637858,-220.56168722,0.00043969,49]
[377193390,1754280637868,-400.0,0.00044,120]
[377193391,1754280637878,-220.56168722,0.00044383,50]
[377193392,1754280637887,-211.51483836,0.00044775,28]
[377193393,1754280637900,-220.56168722,0.00044797,51]
[377193394,1754280637910,-186.40354456,0.00044999,2]
[377193395,1754280637919,-500.0,0.00044999,2]
[377193396,1754280637928,-500.0,0.00044999,120]
[377193397,1754280637937,-500.0,0.00044999,120]
[377193398,1754280637946,-210.00825829,0.00044999,2]
[377193399,1754280637956,-500.0,0.00044999,120]
[377193400,1754280637966,-500.0,0.00044999,120]
[377193401,1754280637975,-397.97786629,0.00044999,120]
[377193402,1754280637986,-306.81594616,0.00044999,120]
[377193403,1754280637997,-98.61696195,0.00044999,120]
[377193404,1754280638007,-357.39757858,0.00045,30]
[377193443,1754280639745,-11872.66505403,0.00045,30]
[377193457,1754280639876,-3189.47359946,0.00045,30]
[377193459,1754280639888,-2624.08640054,0.00045,30]
[377193585,1754280642785,-4355.40570425,0.00045,30]
[377193587,1754280646194,-5919.05487686,0.00045,30]
[377193589,1754280923745,1000.0,0.00026,2]
[377193591,1754281098964,159.79807477,0.0003,4]
[377193597,1754281520605,-160.61,0.00032176,30]
[377193598,1754281520628,-160.61,0.00033848,30]
[377193599,1754281520649,-160.61,0.00035519,60]
[377193600,1754281520671,-137.17,0.0003719,60]
[377193601,1754281532710,441.49846518,0.00029923,30]
[377193603,1754281576817,159.29,0.00027183,7]
[377193604,1754281590937,10000.0,0.0003,2]
[377193605,1754281605399,10000.0,0.0003,30]
[377193606,1754281612732,10000.0,0.0003,10]
[377193608,1754281646514,10000.0,0.0003,2]
[377193609,1754281663800,4162.0,0.0003,2]
[377193610,1754281714304,198.50333178,0.00025,2]
[377193623,1754281765195,159.3,0.00027283,7]
[377193624,1754281766479,159.3,0.00027183,7]
[377193673,1754281832054,-158.54,0.00036707,7]
[377193677,1754281832064,-601.0,0.00041356,5]
[377193680,1754281832074,-1200.0,0.00041357,5]
[377193683,1754281832084,-160.0,0.00041451,2]
[377193686,1754281832093,-183.9477944,0.00041612,2]
[377193689,1754281832108,-550.0,0.00041898,5]
[377193691,1754281832127,-160.0,0.000419,45]
[377193693,1754281832137,-219.04366383,0.000419,45]
[377193695,1754281832146,-160.0,0.00042,35]
[377193697,1754281832156,-160.0,0.00043,60]
[377193700,1754281832165,-160.0,0.00043,35]
[377193702,1754281832175,-663.66317611,0.00043199,120]
[377193703,1754281832184,-219.04366377,0.000439,49]
[377193706,1754281832195,-164.707,0.00044383,70]
[377193708,1754281832205,-581.5354085,0.00044999,2]
[377193710,1754281832215,-3489.1625624,0.00045,30]
[377193758,1754281837939,-2683.89436052,0.00045,30]
[377193759,1754281838051,-1101.379751,0.00045,30]
[377193760,1754281838063,-270.13541551,0.00045,30]
[377193761,1754281838074,-605.29311093,0.00045,30]
[377193762,1754281838090,-4841.94158592,0.00045,30]
[377193763,1754281838100,-204.0,0.00045,90]
[377193764,1754281838110,-160.0,0.00045326,2]
[377193765,1754281838119,-219.04366377,0.000459,53]
[377193766,1754281838129,-151.0820274,0.000459,28]
[377193767,1754281838138,-500.0,0.00045999,120]
[377193768,1754281838147,-365.55700821,0.00045999,120]
[377193769,1754281838156,-500.0,0.00045999,120]
[377193770,1754281838166,-500.0,0.00045999,120]
[377193771,1754281838175,-500.0,0.00045999,120]
[377193772,1754281838308,-500.0,0.00045999,120]
[377193773,1754281838318,-500.0,0.00045999,120]
[377193774,1754281838327,-500.0,0.00045999,120]
[377193775,1754281838336,-500.0,0.00045999,120]
[377193776,1754281838346,-500.0,0.00045999,120]
[377193777,1754281838355,-189.05972304,0.00045999,120]
[377193778,1754281838365,-140.78995529,0.00045999,120]
[377193796,1754281840083,-359.21004471,0.00045999,120]
[377193798,1754281840092,-500.0,0.00045999,120]
[377193800,1754281840102,-300.0,0.00046,120]
[377193802,1754281840111,-2099.40948082,0.00046,30]
[377193847,1754281843961,-8245.27623078,0.00046,30]
[377193848,1754281843994,-19655.3142884,0.00046,30]
[377193849,1754281844004,-307.8067655,0.00046027,30]
[377193850,1754281844014,-578.8327873,0.00046027,30]
[377193851,1754281844023,-153.0,0.00046027,30]
[377193852,1754281844033,-153.0,0.00046027,30]
[377193853,1754281844042,-153.0,0.00046027,30]
[377193854,1754281844052,-578.8327873,0.00046027,30]
[377193855,1754281844061,-153.0,0.00046027,30]
[377193856,1754281844071,-200.0,0.00046088,60]
[377193857,1754281844080,-200.0,0.00046088,60]
[377193859,1754281844090,-200.0,0.00046088,60]
[377193861,1754281844100,-200.0,0.00046088,60]
[377193862,1754281844109,-1637.003,0.000465,120]
[377193863,1754281844119,-7723.57365092,0.000468,2]
[377193864,1754281844129,-153.0,0.00046849,30]
[377193865,1754281844139,-153.0,0.00046849,30]
[377193866,1754281844148,-578.8327873,0.00046849,30]
[377193867,1754281844158,-578.8327873,0.00046849,30]
[377193868,1754281844167,-153.0,0.00046849,30]
[377193869,1754281844177,-500.0,0.00046873,10]
[377193870,1754281844186,-1851.24312266,0.00046873,4]
[377193871,1754281844196,-2148.0,0.00046883,2]
[377193872,1754281844207,-975.112,0.00046883,2]
[377193873,1754281844217,-638.403,0.00046883,2]
[377193874,1754281844227,-409.879,0.00046883,2]
[377193875,1754281844236,-894.94909673,0.00046889,120]
[377193883,1754281845988,-1267.69391632,0.000468,2]
[377193884,1754281845998,-4451.04090327,0.00046889,120]
[377193885,1754281846008,-402.92547895,0.0004689,61]
[377193886,1754281846017,-217.09,0.0004689,30]
[377193887,1754281846027,-1329.00920219,0.0004689,4]
[377193888,1754281846040,-718.60000001,0.0004689,4]
[377193889,1754281846052,-1013.55690541,0.0004689,4]
[377193890,1754281846199,-401.92323987,0.0004689,4]
[377193891,1754281846212,-9495.61251112,0.0004689,4]
[377193892,1754281846222,-1056.75539603,0.000469,120]
[377193893,1754281846234,-793.40518907,0.000469,120]
[377193920,1754283032306,-191.04,0.0003656,7]
[377193922,1754283032819,-272.0729,0.000433,120]
[377193923,1754283032829,-29269.16415779,0.000438,2]
[377193942,1754283038143,-463.68597516,0.00043799,2]
[377193944,1754283038157,-36.31402484,0.00043799,2]
[377193946,1754283038166,-500.0,0.00043799,31]
[377193948,1754283038176,-500.0,0.00043799,31]
[377193950,1754283038191,-500.0,0.00043799,2]
[377193952,1754283038200,-342.47067578,0.00043799,31]
[377193954,1754283038215,-157.52932422,0.00043799,31]
[377193956,1754283038226,-500.0,0.00043799,31]
[377193958,1754283038235,-448.99489517,0.00043799,31]
[377193961,1754283038247,-183.12285183,0.00043799,31]
[377193963,1754283038256,-841.90151319,0.000438,2]
[377193965,1754283038267,-19952.3996972,0.000438,2]
[377193967,1754283038276,-359.14071325,0.000439,49]
[377193969,1754283038285,-359.14071305,0.00044176,50]
[377193970,1754283038294,-359.14071305,0.00044452,50]
[377193972,1754283038303,-1100.0,0.000446,120]
[377193974,1754283038312,-359.14071305,0.00044728,51]
[377193976,1754283038322,-164.707,0.00044889,72]
[377193978,1754283038332,-20945.96876525,0.0004499,2]
[377193980,1754283038343,-359.14071305,0.00045003,51]
[377193982,1754283038353,-331.83158806,0.00045007,120]
[377193984,1754283038362,-359.14071305,0.00045279,52]
[377193986,1754283038371,-359.14071305,0.00045555,52]
[377193988,1754283038381,-196.05713529,0.00045799,28]
[377193990,1754283038390,-359.14071305,0.00045831,53]
[377193992,1754283038399,-151.0,0.00045872,2]
[377193994,1754283038408,-503.37262385,0.00045873,10]
[377193996,1754283038417,-500.0,0.00045873,10]
[377193998,1754283038426,-6034.1294933,0.00045873,2]
[377194000,1754283038435,-31041.9289438,0.0004589,4]
[377194002,1754283038444,-272.3337569,0.00045899,120]
[377194004,1754283038453,-5878.3,0.00045899,120]
[377194006,1754283038463,-201.46273947,0.000459,61]
[377194008,1754283038472,-8119.67132484,0.000459,2]
[377194010,1754283038481,-15447.1473018,0.000459,2]
[377194012,1754283038490,-926371.06483218,0.000459,120]
[377194014,1754283038502,-169349.02018324,0.000459,120]
[377194179,1754283040206,-704.535,0.000459,120]
[377194498,1754283043160,-500.0,0.00043799,2]
[377194500,1754283043170,-579.0,0.000459,120]
[377194503,1754283043192,-22855.61378198,0.000459,120]
[377194508,1754283043228,-45518.08122087,0.000459,120]
[377194510,1754283043240,-4135.84014867,0.000459,120]
[377194512,1754283043251,-347.8638462,0.000459,120]
[377194522,1754283043338,-911.75,0.000459,120]
[377194776,1754283046228,-1060.13935512,0.000459,120]
[377195239,1754283157422,161.86,0.0003,2]
[377195240,1754283306915,514.0,0.0003,30]
[377195250,1754283675953,859.0,0.0003,10]
[377195251,1754283682787,12646.87439643,0.0003,7]
[377195252,1754284061910,-460.0,0.00035,7]
[377195253,1754284130232,-40.0,0.00035,7]
[377195254,1754284130255,-144.0,0.00036155,7]
[377195255,1754284151150,-8.83,0.00036155,7]
[377195256,1754284151172,-160.0,0.00043,51]
[377195257,1754284151191,-160.0,0.00043,38]
[377195258,1754284151212,-160.0,0.00043,120]
[377195259,1754284178168,160.0,0.00043,61]
[377195260,1754284206251,160.0,0.00043,51]
[377195261,1754284229902,160.0,0.00043,61]
[377195273,1754284232464,-377.48774906,0.00044063,120]
[377195275,1754284232474,-156.26367628,0.000448,2]
[377195277,1754284232483,-300.0,0.00044889,5]
[377195278,1754284232493,-2200.0,0.00044889,5]
[377195279,1754284232503,-438.0,0.00044889,5]
[377195280,1754284232512,-496.0,0.00044889,5]
[377195281,1754284232522,-300.0,0.00044889,5]
[377195282,1754284232531,-550.0,0.00044889,5]
[377195283,1754284232541,-31.0165519,0.0004489,3]
[377195323,1754284238243,-180.78251479,0.000448,2]
[377195324,1754284238253,-1869.38731892,0.0004489,3]
[377195325,1754284238263,-149.9487121,0.0004489,3]
[377195326,1754284238272,-500.0,0.00044899,2]
[377195327,1754284238281,-500.0,0.00044899,7]
[377195328,1754284238291,-500.0,0.00044899,120]
[377195329,1754284238300,-500.0,0.00044899,2]
[377195330,1754284238315,-500.0,0.00044899,120]
[377195331,1754284238324,-512.18066361,0.00044899,2]
[377195332,1754284238334,-6.57637062,0.00044899,2]
[377195333,1754284238409,-493.42362938,0.00044899,2]
[377195334,1754284238419,-500.0,0.00044899,2]
[377195335,1754284238429,-514.35009881,0.00044899,7]
[377195336,1754284238440,-500.0,0.00044899,120]
[377195337,1754284238450,-425.87118872,0.00044899,120]
[377195338,1754284238461,-500.0,0.00044899,2]
[377195339,1754284238470,-500.0,0.00044899,2]
[377195340,1754284238479,-500.0,0.00044899,2]
[377195341,1754284238489,-391.99348312,0.00044899,120]
[377195342,1754284238498,-500.0,0.00044899,2]
[377195343,1754284238507,-500.0,0.00044899,2]
[377195344,1754284238516,-500.0,0.00044899,2]
[377195345,1754284238525,-250.0,0.00044899,2]
[377195346,1754284238534,-333.60954628,0.00044899,2]
[377195347,1754284238544,-500.0,0.00044899,2]
[377195348,1754284238553,-500.0,0.00044899,2]
[377195349,1754284238562,-500.0,0.00044899,2]
[377195350,1754284238571,-500.0,0.00044899,2]
[377195351,1754284238581,-500.0,0.00044899,2]
[377195352,1754284238590,-500.0,0.00044899,2]
[377195353,1754284238599,-500.0,0.00044899,2]
[377195354,1754284238609,-500.0,0.00044899,2]
[377195355,1754284238618,-133528.65202,0.000449,120]
[377195356,1754284238627,-750.24470189,0.000449,51]
[377195357,1754284238637,-312.16666667,0.000449,120]
[377195358,1754284238647,-152.04,0.00045,120]
[377195359,1754284238657,-750.24470166,0.00045176,52]
[377195360,1754284238667,-6405.02171551,0.00045176,2]
[377195361,1754284238676,-750.24470166,0.00045452,52]
[377195362,1754284238686,-2166.53527232,0.000455,120]
[377195363,1754284238696,-750.24470166,0.00045728,53]
[377195364,1754284238705,-321.97235679,0.00045789,120]
[377195365,1754284238715,-13052.40539877,0.0004579,4]
[377195554,1754284243605,-250.42169693,0.0004579,4]
[377195555,1754284243615,-1049.6409847,0.0004579,4]
[377195556,1754284243625,-91476.4487629,0.000458,2]
[377195557,1754284243719,-2677.72416712,0.000458,2]
[377195563,1754284596411,159.3,0.00027193,7]
[377195564,1754284596450,159.3,0.00027293,7]
[377195566,1754284678788,874.66,0.00030137,120]
[377195568,1754284713737,-160.61,0.00033634,30]
[377195569,1754284713759,-300.0,0.00035,30]
[377195570,1754284713780,-160.61,0.00035282,60]
[377195571,1754284713806,-810.9799009,0.000369,35]
[377195572,1754284713832,-120.8000991,0.0003693,60]
[377195573,1754284785279,162.79,0.000274,15]
[377195574,1754284785403,162.81,0.000275,15]
[377195575,1754284786646,162.79,0.000273,7]
[377195576,1754284786930,162.79,0.000272,7]
[377195577,1754284805378,9041.46636972,0.00026745,7]
[377195578,1754284805414,19114.09363028,0.00021,2]
[377195579,1754284805437,22344.20436147,0.00021,2]
[377195580,1754284933790,7655.79563853,0.00032501,7]
[377195581,1754284933812,4978.93570464,0.00032501,7]
[377195582,1754285019516,4533.0,0.00030137,120]
[377195589,1754285295311,20488.06429536,0.00026,10]
[377195590,1754285295838,18240.85760183,0.00026,10]
[377195591,1754285299551,2502.72867098,0.0002822,2]
[377195592,1754285316893,4836.09509214,0.0002,2]
[377195593,1754285324519,1000.0,0.00026,2]
[377195594,1754285326533,3420.31863505,0.0003013,5]
[377195595,1754285326571,17782.00280325,0.0003013,5]
[377195598,1754285365099,-153.92,0.00035733,7]
[377195599,1754285365119,-406.94044239,0.00037313,2]
[377195600,1754285365139,-1079.0,0.00037898,3]
[377195601,1754285365160,-1600.0,0.00037899,3]
[377195602,1754285365186,-693.18349785,0.000379,37]
[377195603,1754285365207,-373.0,0.00038,2]
[377195604,1754285365227,-243.0,0.00038001,3]
[377195605,1754285365247,-300.0,0.00038001,3]
[377195606,1754285365267,-163.0,0.00038001,3]
[377195607,1754285365302,-647.375168,0.00038417,38]
[377195616,1754285432585,-45.80832973,0.00038417,38]
[377195619,1754285432594,-186.8099666,0.00038683,2]
[377195621,1754285432604,-174.4542977,0.00038766,2]
[377195623,1754285432614,-693.18349773,0.00038934,39]
[377195625,1754285432625,-693.18349773,0.00039452,40]
[377195626,1754285432635,-693.18349773,0.00039969,41]
[377195627,1754285432644,-280.0,0.00039999,5]
[377195628,1754285432654,-419.956,0.0004,30]
[377195629,1754285432664,-8687.21547874,0.0004,120]
[377195630,1754285432676,-4507.94031922,0.0004,120]
[377195631,1754285432688,-6919.63049704,0.0004,120]
[377195632,1754285432700,-693.18349773,0.00040486,42]
[377195633,1754285432709,-693.18349773,0.00041003,43]
[377195634,1754285432719,-693.18349773,0.00041521,44]
[377195635,1754285432728,-184.735,0.00041521,61]
[377195636,1754285432738,-693.18349773,0.00042038,45]
[377195637,1754285432747,-693.18349773,0.00042555,46]
[377195638,1754285432757,-693.18349773,0.00043072,47]
[377195639,1754285432767,-693.18349773,0.0004359,48]
[377195640,1754285432776,-188.74387453,0.00043968,120]
[377195641,1754285432786,-200.0,0.00043999,30]
[377195642,1754285432796,-200.0,0.00043999,30]
[377195643,1754285432805,-200.0,0.00043999,30]
[377195644,1754285432815,-200.0,0.00043999,30]
[377195645,1754285432824,-693.18349773,0.00044107,49]
[377195646,1754285432834,-693.18349773,0.00044624,50]
[377195647,1754285432843,-693.18349773,0.00045141,51]
[377195648,1754285432857,-160.0,0.00045637,2]
[377195649,1754285432867,-693.18349773,0.00045659,52]
[377195650,1754285432876,-40153.32530237,0.00045699,2]
[377195651,1754285438607,-500.0,0.00045698,120]
[377195652,1754285438617,-500.0,0.00045698,2]
[377195653,1754285438631,-500.0,0.00045698,2]
[377195654,1754285438640,-500.0,0.00045698,2]
[377195655,1754285438650,-500.0,0.00045698,120]
[377195656,1754285438660,-500.0,0.00045698,31]
[377195657,1754285438670,-478.71508616,0.00045698,120]
[377195658,1754285438680,-500.0,0.00045698,2]
[377195659,1754285438691,-416.54317484,0.00045698,120]
[377195660,1754285438701,-374.5503874,0.00045698,2]
[377195661,1754285438713,-250.0,0.00045698,2]
[377195662,1754285438723,-160.0,0.00045699,2]
[377195663,1754285438733,-59846.67469763,0.00045699,2]
[377195664,1754285438742,-20051.29761384,0.000457,120]
[377195665,1754285438753,-5149.0491006,0.000457,2]
[377195666,1754285438762,-527.23761927,0.000457,120]
[377195667,1754285438771,-724.0,0.000457,2]
[377195668,1754285438781,-151.0,0.00045773,2]
[377195670,1754285438791,-151.0,0.00045773,2]
[377195672,1754285438800,-151.0,0.00045773,2]
[377195674,1754285438810,-151.0,0.00045773,2]
[377195676,1754285438819,-151.0,0.00045773,2]
[377195677,1754285438828,-151.0,0.00045773,2]
[377195679,1754285438838,-151.0,0.00045773,2]
[377195681,1754285438848,-151.0,0.00045773,2]
[377195683,1754285438858,-151.0,0.00045773,2]
[377195685,1754285438868,-151.0,0.00045773,2]
[377195687,1754285438878,-151.0,0.00045773,2]
[377195689,1754285438887,-151.0,0.00045773,2]
[377195691,1754285438896,-151.0,0.00045773,2]
[377195694,1754285438906,-151.0,0.00045773,2]
[377195696,1754285438916,-151.0,0.00045773,2]
[377195698,1754285438925,-151.0,0.00045773,2]
[377195699,1754285438934,-151.0,0.00045773,2]
[377195701,1754285438944,-151.0,0.00045773,2]
[377195704,1754285438954,-151.0,0.00045773,2]
[377195705,1754285438963,-151.0,0.00045773,2]
[377195708,1754285438973,-500.0,0.00045773,10]
[377195710,1754285438983,-2755.82,0.00045788,7]
[377195712,1754285438993,-225.38064976,0.00045789,120]
[377195714,1754285439002,-10290.9816364,0.0004579,4]
[377195716,1754285439012,-499.8290403,0.0004579,4]
[377195718,1754285439021,-5633.37,0.00045799,120]
[377195720,1754285439032,-6639.99,0.000458,14]
[377195722,1754285439041,-160.0,0.000458,30]
[377195724,1754285439050,-160.0,0.000458,30]
[377195726,1754285439060,-163.15350018,0.000458,30]
[377195728,1754285439069,-175.16679718,0.000458,30]
[377195729,1754285439078,-1757.0,0.000458,30]
[377195732,1754285439088,-1757.0,0.000458,30]
[377195733,1754285439097,-152.0,0.000458,30]
[377195735,1754285439107,-1757.0,0.000458,30]
[377195737,1754285439116,-152.0,0.000458,30]
[377195739,1754285439125,-1757.0,0.000458,30]
[377195741,1754285439134,-155.0,0.000458,30]
[377195744,1754285439144,-1757.0,0.000458,30]
[377195745,1754285439154,-152.0,0.000458,30]
[377195748,1754285439163,-211.68088287,0.000458,30]
[377195749,1754285439173,-1757.0,0.000458,30]
[377195751,1754285439182,-152.0,0.000458,30]
[377195754,1754285439194,-1757.0,0.000458,30]
[377195756,1754285439203,-152.0,0.000458,30]
[377195757,1754285439212,-1757.0,0.000458,30]
[377195759,1754285439222,-152.0,0.000458,30]
[377195761,1754285439231,-152.0,0.000458,30]
[377195763,1754285439241,-1757.0,0.000458,30]
[377195765,1754285439251,-152.0,0.000458,30]
[377195767,1754285439262,-1757.0,0.000458,30]
[377195769,1754285439270,-152.0,0.000458,30]
[377195772,1754285439281,-1757.0,0.000458,30]
[377195774,1754285439291,-152.0,0.000458,30]
[377195775,1754285439300,-1757.0,0.000458,30]
[377195777,1754285439309,-152.0,0.000458,30]
[377195779,1754285439318,-1757.0,0.000458,30]
[377195781,1754285439328,-152.0,0.000458,30]
[377195784,1754285439337,-1757.0,0.000458,30]
[377195786,1754285439347,-1757.0,0.000458,30]
[377195788,1754285439356,-1757.0,0.000458,30]
[377195790,1754285439365,-1757.0,0.000458,30]
[377195792,1754285439377,-325.0,0.000458,30]
[377195794,1754285439386,-325.0,0.000458,30]
[377195796,1754285439395,-1757.0,0.000458,30]
[377195798,1754285439404,-325.0,0.000458,30]
[377195799,1754285439414,-325.0,0.000458,30]
[377195801,1754285439423,-1757.0,0.000458,30]
[377195803,1754285439433,-325.0,0.000458,30]
[377195805,1754285439443,-1757.0,0.000458,30]
[377195807,1754285439452,-325.0,0.000458,30]
[377195823,1754285439584,-1817.88068113,0.000458,30]
[377195824,1754285439594,-325.0,0.000458,30]
[377195826,1754285439604,-325.0,0.000458,30]
[377195828,1754285439614,-152.0,0.000458,30]
[377195830,1754285439627,-325.0,0.000458,30]
[377195832,1754285439640,-152.0,0.000458,30]
[377195834,1754285439649,-152.0,0.000458,30]
[377195836,1754285439659,-152.0,0.000458,30]
[377195838,1754285439669,-325.0,0.000458,30]
[377195840,1754285439678,-152.0,0.000458,30]
[377195843,1754285439688,-333.10662728,0.000458,30]
[377195845,1754285439699,-152.0,0.000458,30]
[377195847,1754285439708,-152.0,0.000458,30]
[377195849,1754285439717,-152.0,0.000458,30]
[377195851,1754285439727,-152.0,0.000458,30]
[377195853,1754285439736,-152.0,0.000458,30]
[377195855,1754285439746,-152.0,0.000458,30]
[377195857,1754285439755,-152.0,0.000458,30]
[377195859,1754285439764,-152.0,0.000458,30]
[377195861,1754285439774,-152.0,0.000458,30]
[377195863,1754285439783,-152.0,0.000458,30]
[377195865,1754285439792,-152.0,0.000458,30]
[377195866,1754285439802,-152.0,0.000458,30]
[377195868,1754285439812,-152.0,0.000458,30]
[377195870,1754285439821,-152.0,0.000458,30]
[377195872,1754285439830,-152.0,0.000458,30]
[377195874,1754285439839,-152.0,0.000458,30]
[377195876,1754285439849,-152.0,0.000458,30]
[377195878,1754285439858,-154.39389526,0.000458,30]
[377195880,1754285439868,-5149.0491006,0.000458,2]
[377195882,1754285439877,-527.23761927,0.000458,30]
[377195884,1754285439887,-198.08649472,0.00045873,2]
[377195886,1754285439896,-300.0,0.00045899,120]
[377195888,1754285439906,-151.0,0.00045899,120]
[377195890,1754285439915,-310.21133493,0.00045899,120]
[377195892,1754285439926,-300.0,0.00045899,120]
[377195894,1754285439935,-300.0,0.00045899,120]
[377195896,1754285439945,-151.0,0.00045899,120]
[377195898,1754285439954,-151.0,0.00045899,120]
[377195900,1754285439964,-300.0,0.00045899,120]
[377195902,1754285439973,-300.0,0.00045899,120]
[377195904,1754285439983,-300.0,0.00045899,120]
[377195906,1754285439992,-151.0,0.00045899,120]
[377195908,1754285440002,-300.0,0.00045899,120]
[377195910,1754285440011,-300.0,0.00045899,120]
[377195912,1754285440020,-151.0,0.00045899,120]
[377195914,1754285440030,-300.0,0.00045899,120]
[377195916,1754285440040,-300.0,0.00045899,120]
[377195918,1754285440049,-151.0,0.00045899,120]
[377195920,1754285440058,-300.0,0.00045899,120]
[377195922,1754285440068,-300.0,0.00045899,120]
[377195924,1754285440078,-151.0,0.00045899,120]
[377195926,1754285440087,-300.0,0.00045899,120]
[377195928,1754285440097,-151.0,0.00045899,120]
[377195930,1754285440106,-300.0,0.00045899,120]
[377195932,1754285440115,-300.0,0.00045899,120]
[377195934,1754285440125,-151.0,0.00045899,120]
[377195936,1754285440134,-300.0,0.00045899,120]
[377195938,1754285440143,-300.0,0.00045899,120]
[377195940,1754285440153,-151.0,0.00045899,120]
[377195942,1754285440162,-154.44347704,0.00045899,120]
[377195944,1754285440171,-300.0,0.00045899,120]
[377195946,1754285440180,-151.0,0.00045899,120]
[377195948,1754285440190,-300.0,0.00045899,120]
[377195950,1754285440199,-300.0,0.00045899,120]
[377195952,1754285440209,-151.0,0.00045899,120]
[377195954,1754285440219,-300.0,0.00045899,120]
[377195956,1754285440228,-300.0,0.00045899,120]
[377195958,1754285440237,-300.0,0.00045899,120]
[377195960,1754285440247,-151.0,0.00045899,120]
[377195962,1754285440256,-300.0,0.00045899,120]